bitfinex/quotes_SOLUSD_20250107
["timestamp","ask_amount","ask_price","bid_price","bid_amount"]
[1736241966614,1.94,216.23,216.15,8.99963535]
[1736241966806,8.99963535,216.21,216.15,8.99963535]
[1736241967019,8.99963535,216.21,216.14,10.62123535]
[1736241967223,8.99963535,216.2,216.14,10.62123535]
[1736241969108,1.94,216.23,216.14,46.62123535]
[1736241969428,8.99963535,216.2,216.14,46.62123535]
[1736241970111,8.99963535,216.19,216.14,37.6216]
[1736241970314,8.99963535,216.18,216.14,37.6216]
[1736241970510,8.99963535,216.18,216.14,1.6216]
[1736241970891,8.99963535,216.16,216.14,1.6216]
[1736241971131,8.99963535,216.17,216.14,1.6216]
[1736241973795,8.99963535,216.15,216.11,6.2829]
[1736241974102,8.99963535,216.14,216.11,6.2829]
[1736241974295,8.99963535,216.16,216.11,6.2829]
[1736241974722,8.99963535,216.17,216.11,15.28253535]
[1736241975420,8.99963535,216.16,216.11,6.2829]
[1736241975823,1.94,216.24,216.11,15.28253535]
[1736241976023,8.99963535,216.17,216.11,15.28253535]
[1736241977821,8.99963535,216.15,216.11,6.2829]
[1736241978015,8.99963535,216.14,216.11,6.2829]
[1736241978219,8.99963535,216.13,216.09,13.2114]
[1736241978519,8.99963535,216.12,216.09,13.2114]
[1736241978823,8.99963535,216.13,216.09,13.2114]
[1736241986134,8.99963535,216.14,216.09,13.2114]
[1736241990433,8.99963535,216.13,216.09,13.2114]
[1736241992907,8.99963535,216.14,216.09,13.2114]
[1736241994133,8.99963535,216.14,216.09,1.6423]
[1736241994334,8.99963535,216.12,216.09,21.6423]
[1736241995305,8.99963535,216.12,216.09,20.0]
[1736241996246,8.99963535,216.13,216.09,20.0]
[1736241999441,8.99963535,216.12,216.09,20.0]
[1736242000443,8.99963535,216.11,216.06,6.2433]
[1736242001645,8.99963535,216.1,216.06,6.2433]
[1736242001942,8.99963535,216.11,216.06,6.2433]
[1736242004446,8.99963535,216.12,216.06,15.24293535]
[1736242007171,8.99963535,216.12,216.06,6.2433]
[1736242009052,1.94,216.19,216.06,6.2433]
[1736242009255,8.99963535,216.11,216.06,6.2433]
[1736242010163,8.99963535,216.12,216.06,15.24293535]
[1736242010644,8.99963535,216.12,216.06,51.24293535]
[1736242012151,8.99963535,216.12,216.06,58.39539635]
[1736242012647,8.99963535,216.12,216.06,49.395761]
[1736242013557,8.99963535,216.12,216.06,13.395761]
[1736242016556,8.99963535,216.12,216.06,49.395761]
[1736242016862,8.99963535,216.11,216.06,49.395761]
[1736242017265,8.99963535,216.11,216.06,42.2433]
[1736242017632,8.99963535,216.11,216.06,6.2433]
[1736242018254,8.99963535,216.11,216.06,13.395761]
[1736242020465,1.94,216.16,216.06,13.395761]
[1736242020633,8.99963535,216.12,216.06,49.395761]
[1736242020834,8.99963535,216.12,216.06,13.395761]
[1736242023061,8.99963535,216.12,216.07,7.152461]
[1736242023655,1.94,216.16,216.07,7.152461]
[1736242023862,8.99963535,216.11,216.07,7.152461]
[1736242024067,8.99963535,216.1,216.07,7.152461]
[1736242024737,8.99963535,216.1,216.06,6.2433]
[1736242028392,1.94,216.15,216.06,6.2433]
[1736242028753,8.99963535,216.11,216.06,6.2433]
[1736242029579,8.99963535,216.11,216.06,13.395761]
[1736242032878,8.99963535,216.11,216.07,7.152461]
[1736242034989,8.99963535,216.12,216.07,7.152461]
[1736242035786,8.99963535,216.11,216.07,7.152461]
[1736242038765,1.94,216.15,216.07,7.152461]
[1736242038766,8.99963535,216.12,216.07,7.152461]
[1736242040688,8.99963535,216.11,216.07,7.152461]
[1736242043792,8.99963535,216.11,216.08,7.152461]
[1736242044163,1.94,216.15,216.08,7.152461]
[1736242044487,8.99963535,216.12,216.08,7.152461]
[1736242045208,1.92,216.18,216.09,8.99963535]
[1736242045503,8.99963535,216.16,216.1,1.6146]
[1736242045679,8.99963535,216.16,216.1,10.61423535]
[1736242046709,8.99963535,216.17,216.11,8.99963535]
[1736242047294,8.99963535,216.16,216.11,7.152461]
[1736242047667,8.99963535,216.15,216.11,7.152461]
[1736242048262,8.99963535,216.14,216.11,7.152461]
[1736242049166,8.99963535,216.12,216.11,7.152461]
[1736242049367,8.99963535,216.12,216.1,7.152461]
[1736242049567,8.99963535,216.11,216.1,7.152461]
[1736242049767,1.92,216.18,216.1,7.152461]
[1736242049968,8.99963535,216.12,216.1,7.152461]
[1736242050378,8.99963535,216.12,216.08,7.152461]
[1736242051387,8.99963535,216.13,216.09,7.152461]
[1736242052022,8.99963535,216.13,216.08,7.152461]
[1736242053524,8.99963535,216.13,216.09,7.152461]
[1736242053712,8.99963535,216.12,216.09,7.152461]
[1736242054113,8.99963535,216.12,216.08,7.152461]
[1736242055132,8.99963535,216.13,216.08,7.152461]
[1736242055629,8.99963535,216.13,216.09,7.152461]
[1736242056419,8.99963535,216.13,216.08,7.152461]
[1736242056831,8.99963535,216.13,216.09,7.152461]
[1736242057425,1.92,216.16,216.09,7.152461]
[1736242057605,8.99963535,216.13,216.09,7.152461]
[1736242058630,8.99963535,216.13,216.08,7.152461]
[1736242058994,8.99963535,216.13,216.09,7.152461]
[1736242059429,8.99963535,216.13,216.08,7.152461]
[1736242060993,8.99963535,216.12,216.08,7.152461]
[1736242062222,8.99963535,216.12,216.07,7.152461]
[1736242062727,8.99963535,216.11,216.07,7.152461]
[1736242067240,1.92,216.16,216.07,7.152461]
[1736242067241,8.99963535,216.1,216.07,7.152461]
[1736242067535,8.99963535,216.1,216.06,8.682461]
[1736242068920,8.99963535,216.09,216.06,7.152461]
[1736242069650,8.99963535,216.09,216.05,7.152461]
[1736242070238,8.99963535,216.1,216.05,7.152461]
[1736242075530,8.99963535,216.1,216.05,16.15209635]
[1736242079357,8.99963535,216.09,216.05,7.152461]
[1736242080231,8.99963535,216.09,216.04,43.152461]
[1736242081561,8.99963535,216.09,216.04,52.15209635]
[1736242081862,20.0,216.14,216.04,52.15209635]
[1736242082162,8.99963535,216.09,216.04,52.15209635]
[1736242084864,8.99963535,216.09,216.04,44.99963535]
[1736242086160,8.99963535,216.09,216.04,36.0]
[1736242087357,1.92,216.13,216.04,36.0]
[1736242087673,8.99963535,216.09,216.03,16.15209635]
[1736242088662,1.92,216.13,216.03,16.15209635]
[1736242088847,8.99963535,216.09,216.03,16.15209635]
[1736242090491,8.99963535,216.09,216.03,52.15209635]
[1736242090691,8.99963535,216.12,216.06,8.99963535]
[1736242090853,8.99963535,216.12,216.06,23.776884]
[1736242091886,8.99963535,216.11,216.06,23.776884]
[1736242093976,8.99963535,216.11,216.05,16.15209635]
[1736242094305,8.99963535,216.12,216.06,8.99963535]
[1736242094665,1.92,216.16,216.08,8.99963535]
[1736242094867,8.99963535,216.15,216.08,8.99963535]
[1736242096022,8.99963535,216.15,216.09,8.99963535]
[1736242096490,8.99963535,216.15,216.08,8.99963535]
[1736242097298,8.99963535,216.14,216.08,8.99963535]
[1736242100189,1.92,216.17,216.08,8.99963535]
[1736242100390,8.99963535,216.15,216.08,8.99963535]
[1736242100601,8.99963535,216.15,216.09,8.99963535]
[1736242102012,8.99963535,216.15,216.09,16.15209635]
[1736242102913,8.99963535,216.15,216.09,7.152461]
[1736242103988,8.99963535,216.14,216.09,7.152461]
[1736242104713,8.99963535,216.14,216.08,16.15209635]
[1736242105213,8.99963535,216.15,216.09,8.99963535]
[1736242107506,1.92,216.17,216.09,8.99963535]
[1736242107815,8.99963535,216.15,216.09,8.99963535]
[1736242110418,8.99963535,216.14,216.08,16.15209635]
[1736242116219,8.99963535,216.14,216.08,8.99963535]
[1736242119796,8.99963535,216.14,216.08,16.15209635]
[1736242120798,8.99963535,216.14,216.08,7.152461]
[1736242121920,8.99963535,216.14,216.07,17.73749635]
[1736242122423,8.99963535,216.14,216.07,53.73749635]
[1736242122718,8.99963535,216.12,216.07,8.737861]
[1736242123820,8.99963535,216.12,216.07,1.5854]
[1736242124601,8.99963535,216.11,216.07,1.5854]
[1736242126295,8.99963535,216.12,216.07,1.5854]
[1736242136345,8.99963535,216.12,216.07,8.737861]
[1736242141451,8.99963535,216.12,216.08,7.152461]
[1736242144530,1.92,216.17,216.09,8.99963535]
[1736242144736,8.99963535,216.15,216.08,16.15209635]
[1736242145041,8.99963535,216.14,216.08,16.15209635]
[1736242145346,8.99963535,216.14,216.09,7.152461]
[1736242147660,1.92,216.17,216.09,7.152461]
[1736242147824,8.99963535,216.14,216.09,7.152461]
[1736242148652,1.92,216.17,216.09,7.152461]
[1736242148829,8.99963535,216.14,216.09,7.152461]
[1736242151355,8.99963535,216.13,216.09,7.152461]
[1736242152648,8.99963535,216.13,216.08,7.152461]
[1736242153754,8.99963535,216.12,216.08,7.152461]
[1736242158740,8.99963535,216.13,216.08,7.152461]
[1736242160572,8.99963535,216.09,216.08,7.152461]
[1736242161333,8.99963535,216.09,216.07,1.5854]
[1736242161537,8.99963535,216.08,216.07,1.5854]
[1736242165168,8.99963535,216.08,216.05,7.152461]
[1736242165363,8.99963535,216.06,216.05,7.152461]
[1736242166270,8.99963535,216.06,216.03,8.727061]
[1736242167770,8.99963535,216.04,216.03,8.727061]
[1736242167952,8.99963535,216.04,216.03,1.5746]
[1736242170578,8.99963535,216.05,216.03,1.5746]
[1736242171373,8.99963535,216.07,216.03,1.5746]
[1736242171745,8.99963535,216.07,216.02,7.152461]
[1736242171746,8.99963535,216.04,216.02,7.152461]
[1736242172063,8.99963535,216.03,216.02,7.152461]
[1736242172459,8.99963535,216.03,215.97,7.152461]
[1736242172644,10.91963535,216.03,215.97,7.152461]
[1736242172843,10.91963535,216.03,215.96,8.772561]
[1736242174571,10.91963535,216.03,215.96,1.6201]
[1736242174874,8.99963535,216.01,215.96,1.6201]
[1736242176102,8.99963535,216.01,215.96,10.61973535]
[1736242178066,8.99963535,216.01,215.96,1.6201]
[1736242181780,8.99963535,216.01,215.96,10.61973535]
[1736242183877,8.99963535,215.98,215.94,20.0]
[1736242184084,8.99963535,215.97,215.91,20.57793535]
[1736242184567,8.99963535,215.97,215.92,32.77651935]
[1736242186282,8.99963535,215.97,215.91,11.5783]
[1736242186477,8.99963535,215.97,215.91,20.57793535]
[1736242191885,8.99963535,215.96,215.91,20.57793535]
[1736242193786,39.5307414,216.04,215.91,20.57793535]
[1736242193955,8.99963535,215.97,215.91,20.57793535]
[1736242195084,8.99963535,215.97,215.92,8.99963535]
[1736242195885,8.99963535,215.98,215.93,23.776884]
[1736242196061,1.5418,216.09,215.97,8.99963535]
[1736242196261,1.92,216.06,216.02,8.99963535]
[1736242196584,1.92,216.07,216.02,8.99963535]
[1736242196765,1.92,216.08,216.03,8.99963535]
[1736242199161,8.99963535,216.06,216.01,20.0]
[1736242200189,1.92,216.08,216.01,20.0]
[1736242200487,8.99963535,216.06,216.01,20.0]
[1736242200900,8.99963535,216.05,216.01,20.0]
[1736242201073,8.99963535,216.05,216.01,19.5]
[1736242201494,8.99963535,216.04,215.98,11.5749]
[1736242201675,8.99963535,216.03,215.98,11.5749]
[1736242201875,8.99963535,216.04,215.98,20.57453535]
[1736242203169,8.99963535,216.01,215.95,13.0827]
[1736242203372,8.99963535,216.01,215.95,22.08233535]
[1736242203977,8.99963535,216.0,215.95,13.0827]
[1736242204181,1.92,216.01,215.92,11.5783]
[1736242204577,8.99963535,215.96,215.92,11.5783]
[1736242204773,8.99963535,215.97,215.92,11.5783]
[1736242204985,8.99963535,215.97,215.95,20.0]
[1736242205396,8.99963535,215.96,215.89,1.6595]
[1736242205576,8.99963535,215.95,215.89,10.65913535]
[1736242206394,8.99963535,215.92,215.89,1.6595]
[1736242206827,8.99963535,215.91,215.9,20.0]
[1736242207107,8.99963535,215.91,215.89,1.6595]
[1736242209195,8.99963535,215.9,215.89,1.6595]
[1736242209576,8.99963535,215.9,215.88,20.0]
[1736242210982,8.99963535,215.91,215.88,20.0]
[1736242211380,8.99963535,215.91,215.85,27.89599736]
[1736242211381,8.99963535,215.89,215.85,18.89636201]
[1736242211600,8.99963535,215.89,215.85,11.5821]
[1736242212801,8.99963535,215.88,215.84,1.5979]
[1736242212977,8.99963535,215.87,215.84,1.5979]
[1736242213807,8.99963535,215.87,215.85,20.0]
[1736242214406,8.99963535,215.87,215.84,21.5979]
[1736242215606,8.99963535,215.88,215.85,20.0]
[1736242216307,8.99963535,215.89,215.85,20.0]
[1736242216813,8.99963535,215.89,215.84,30.59753535]
[1736242217315,8.99963535,215.9,215.84,30.59753535]
[1736242220710,8.99963535,215.9,215.85,8.99963535]
[1736242223112,8.99963535,215.9,215.84,30.59753535]
[1736242224627,8.99963535,215.91,215.85,8.99963535]
[1736242225415,8.99963535,215.91,215.84,22.18013535]
[1736242225624,8.99963535,215.9,215.84,22.18013535]
[1736242228625,20.0,216.0,215.89,8.99963535]
[1736242228817,8.99963535,215.96,215.9,8.99963535]
[1736242229001,35.9985414,216.04,215.89,8.99963535]
[1736242229002,8.99963535,215.95,215.89,8.99963535]
[1736242230413,8.99963535,215.94,215.89,8.99963535]
[1736242232733,5.0,216.07,215.93,8.99963535]
[1736242232897,8.99963535,215.99,215.93,8.99963535]
[1736242233104,8.99963535,216.0,215.93,8.99963535]
[1736242233638,5.0,216.06,215.93,8.99963535]
[1736242233941,8.99963535,216.03,215.96,8.99963535]
[1736242234241,8.99963535,216.02,215.96,8.99963535]
[1736242234826,8.99963535,216.02,215.95,8.99963535]
[1736242236134,8.99963535,216.02,215.94,36.0484658]
[1736242236135,8.99963535,216.01,215.94,35.354084]
[1736242236307,8.99963535,216.01,215.95,8.99963535]
[1736242237033,8.99963535,216.01,215.94,44.35371935]
[1736242237219,8.99963535,216.0,215.94,44.35371935]
[1736242237637,8.99963535,216.02,215.96,8.99963535]
[1736242240348,8.99963535,216.03,215.96,8.99963535]
[1736242242751,8.99963535,216.02,215.96,8.99963535]
[1736242243246,8.99963535,216.01,215.95,9.69406022]
[1736242244221,8.99963535,216.0,215.95,0.69442487]
[1736242244416,8.99963535,216.0,215.94,45.04809512]
[1736242244635,8.99963535,216.0,215.94,36.04845977]
[1736242245044,8.99963535,215.99,215.94,36.04845977]
[1736242246046,8.99963535,215.99,215.94,45.04809512]
[1736242246561,8.99963535,216.0,215.94,45.04809512]
[1736242247728,8.99963535,216.01,215.95,8.99963535]
[1736242251048,1.92,216.1,215.96,32.77651935]
[1736242251250,8.99963535,216.04,215.98,32.77651935]
[1736242251437,8.99963535,216.04,215.98,33.47077486]
[1736242251944,8.99963535,216.07,216.01,8.99963535]
[1736242253050,8.99963535,216.08,216.02,28.99963535]
[1736242253755,8.99963535,216.07,216.02,20.0]
[1736242256550,8.99963535,216.08,216.02,29.69383604]
[1736242256853,8.99963535,216.09,216.03,8.99963535]
[1736242257540,8.99963535,216.1,216.03,8.99963535]
[1736242257954,8.99963535,216.1,216.04,8.99963535]
[1736242259130,8.99963535,216.11,216.04,8.99963535]
[1736242259828,8.99963535,216.1,216.04,8.99963535]
[1736242260238,1.94,216.15,216.04,8.99963535]
[1736242260554,8.99963535,216.11,216.04,8.99963535]
[1736242260761,8.99963535,216.11,216.04,10.65503535]
[1736242261950,1.94,216.15,216.04,10.65503535]
[1736242261951,5.0,216.19,216.05,6.2923]
[1736242262155,8.99963535,216.11,216.05,15.29193535]
[1736242262543,8.99963535,216.11,216.05,6.2923]
[1736242262758,8.99963535,216.09,216.05,6.2923]
[1736242264555,8.99963535,216.08,216.05,6.2923]
[1736242265433,8.99963535,216.09,216.05,6.2923]
[1736242265634,8.99963535,216.1,216.05,6.2923]
[1736242265856,8.99963535,216.07,216.04,1.6554]
[1736242268063,8.99963535,216.06,216.04,1.6554]
[1736242268260,35.9985414,216.15,216.0,6.136]
[1736242268439,8.99963535,216.04,216.0,6.136]
[1736242279159,8.99963535,216.02,215.99,1.5825]
[1736242279468,8.99963535,216.01,215.99,1.5825]
[1736242280173,8.99963535,216.01,216.0,20.0]
[1736242284661,8.99963535,216.04,216.0,20.0]
[1736242287356,8.99963535,216.03,216.0,20.0]
[1736242287891,8.99963535,216.02,216.0,20.0]
[1736242290485,8.99963535,216.01,216.0,20.0]
[1736242295100,8.99963535,216.01,215.98,7.152461]
[1736242295395,8.99963535,215.99,215.98,7.152461]
[1736242295601,8.94392603,215.99,215.98,7.152461]
[1736242296121,8.94392603,215.99,215.96,7.152461]
[1736242296417,8.99963535,215.97,215.96,7.152461]
[1736242297124,8.99963535,215.97,215.95,7.152461]
[1736242297411,8.99963535,215.96,215.95,7.152461]
[1736242297714,8.99963535,215.97,215.95,7.152461]
[1736242298275,8.99963535,215.97,215.96,7.152461]
[1736242300491,8.99963535,215.97,215.9,7.152461]
[1736242300702,8.99963535,215.91,215.9,7.152461]
[1736242301013,8.99963535,215.92,215.9,7.152461]
[1736242301182,8.99963535,215.92,215.88,7.152461]
[1736242302828,8.99963535,215.92,215.9,20.0]
[1736242302981,1.94,216.0,215.91,8.99963535]
[1736242303319,8.99963535,215.98,215.92,0.69449586]
[1736242303519,8.99963535,215.98,215.92,9.69413121]
[1736242303680,8.99963535,215.99,215.93,8.99963535]
[1736242303886,8.99963535,215.98,215.92,9.69413121]
[1736242304085,8.99963535,215.99,215.93,8.99963535]
[1736242305316,10.93963535,216.0,215.94,8.99963535]
[1736242305682,1.6122,216.06,215.96,8.99963535]
[1736242305885,8.99963535,216.03,215.96,8.99963535]
[1736242306241,8.99963535,216.03,215.97,8.99963535]
[1736242306378,10.93963535,216.03,215.97,44.99963535]
[1736242306574,10.93963535,216.04,215.98,8.99963535]
[1736242306774,8.99963535,216.05,215.98,8.99963535]
[1736242306978,1.94,216.04,215.98,8.99963535]
[1736242308240,8.99963535,216.03,215.97,21.26902618]
[1736242310144,8.99963535,216.0,215.97,11.5751]
[1736242310350,8.99963535,216.0,215.98,20.0]
[1736242310527,8.99963535,215.99,215.95,43.152461]
[1736242310722,8.99963535,215.98,215.97,20.0]
[1736242311045,8.99963535,215.98,215.96,20.0]
[1736242311280,8.99963535,215.97,215.93,7.152461]
[1736242311411,8.99963535,215.94,215.93,7.152461]
[1736242312412,8.99963535,215.94,215.88,7.152461]
[1736242312609,7.7232,216.02,215.88,7.152461]
[1736242312920,8.99963535,215.95,215.89,11.35930669]
[1736242313939,8.99963535,215.95,215.89,47.35930669]
[1736242317058,8.99963535,215.94,215.89,2.35967134]
[1736242317355,8.99963535,215.93,215.89,1.6651]
[1736242320027,8.99963535,215.93,215.89,37.6651]
[1736242323969,8.99963535,215.94,215.89,37.6651]
[1736242328149,8.99963535,215.93,215.89,37.6651]
[1736242332068,8.99963535,215.94,215.89,46.66473535]
[1736242332254,8.99963535,215.95,215.9,0.69458145]
[1736242333070,8.99963535,215.94,215.9,0.69458145]
[1736242333364,8.99963535,215.92,215.89,1.6651]
[1736242333541,8.99963535,215.92,215.89,20.0]
[1736242333744,8.99963535,215.9,215.86,7.152461]
[1736242333944,8.99963535,215.89,215.86,7.152461]
[1736242334561,8.99963535,215.9,215.86,7.152461]
[1736242334763,8.99963535,215.9,215.87,20.0]
[1736242337055,5.0,216.04,215.9,23.776884]
[1736242337372,8.99963535,215.98,215.92,8.99963535]
[1736242338363,8.99963535,215.98,215.91,9.69411991]
[1736242339263,8.99963535,215.97,215.91,9.69411991]
[1736242339671,8.99963535,215.97,215.92,36.0]
[1736242340184,8.99963535,215.96,215.92,36.0]
[1736242340358,8.99963535,215.94,215.92,36.0]
[1736242340678,8.99963535,215.94,215.89,0.6944941]
[1736242341495,8.99963535,215.94,215.89,20.6944941]
[1736242341670,8.99963535,215.94,215.89,20.0]
[1736242341864,8.99963535,215.93,215.89,20.0]
[1736242342284,8.99963535,215.92,215.89,20.0]
[1736242343984,8.99963535,215.91,215.89,20.0]
[1736242344176,8.99963535,215.91,215.86,7.84704428]
[1736242344388,8.99963535,215.9,215.86,7.152461]
[1736242344582,8.99963535,215.9,215.85,7.152461]
[1736242344890,8.99963535,215.9,215.88,20.0]
[1736242347489,1.96,215.97,215.88,20.0]
[1736242347666,8.99963535,215.91,215.88,20.0]
[1736242348488,1.96,215.97,215.88,20.0]
[1736242348690,8.99963535,215.91,215.88,20.0]
[1736242349406,8.99963535,215.92,215.88,20.0]
[1736242350381,8.99963535,215.92,215.88,56.0]
[1736242351107,8.99963535,215.94,215.88,65.69426868]
[1736242351474,8.99963535,215.92,215.88,63.84709433]
[1736242352690,8.99963535,215.92,215.88,27.84709433]
[1736242355716,8.99963535,215.92,215.88,63.84709433]
[1736242357028,8.99963535,215.92,215.88,63.152461]
[1736242357508,8.99963535,215.92,215.88,56.0]
[1736242358616,8.99963535,215.92,215.88,20.0]
[1736242358793,8.99963535,215.91,215.88,20.0]
[1736242360702,8.99963535,215.92,215.88,27.152461]
[1736242361608,8.99963535,215.92,215.88,63.152461]
[1736242363103,8.99963535,215.92,215.89,7.152461]
[1736242363293,8.99963535,215.91,215.89,7.152461]
[1736242371632,8.99963535,215.9,215.89,7.152461]
[1736242372316,8.99963535,215.9,215.87,7.152461]
[1736242374022,8.99963535,215.9,215.86,7.152461]
[1736242376229,8.99963535,215.89,215.86,7.152461]
[1736242378530,8.99963535,215.89,215.87,7.152461]
[1736242379208,8.99963535,215.89,215.85,50.99964023]
[1736242379209,8.99963535,215.89,215.86,7.152461]
[1736242380128,1.96,215.98,215.86,7.152461]
[1736242380318,8.99963535,215.9,215.86,7.152461]
[1736242381224,8.99963535,215.88,215.86,7.152461]
[1736242381432,8.99963535,215.89,215.86,7.152461]
[1736242382630,8.99963535,215.87,215.86,7.152461]
[1736242383632,8.99963535,215.87,215.81,7.152461]
[1736242383930,8.99963535,215.82,215.79,7.152461]
[1736242384301,8.99963535,215.81,215.79,7.152461]
[1736242385630,8.99963535,215.82,215.79,7.152461]
[1736242385805,1.96,215.91,215.79,7.84742039]
[1736242386005,8.99963535,215.83,215.79,7.84742039]
[1736242387106,8.99963535,215.84,215.79,7.84742039]
[1736242388233,1.96,215.91,215.79,7.84742039]
[1736242388535,1.96,215.91,215.78,7.152461]
[1736242388536,8.99963535,215.8,215.78,7.152461]
[1736242388845,8.99963535,215.8,215.77,25.890922]
[1736242388846,8.99963535,215.8,215.77,18.738461]
[1736242389206,8.99963535,215.8,215.77,11.586]
[1736242389828,8.99963535,215.79,215.77,11.586]
[1736242391134,8.99963535,215.78,215.76,0.69489843]
[1736242391450,8.99963535,215.78,215.75,7.152461]
[1736242392121,8.99963535,215.78,215.74,7.152461]
[1736242392831,8.99963535,215.78,215.76,20.0]
[1736242393042,8.99963535,215.78,215.74,23.776884]
[1736242393545,1.96,215.84,215.74,23.776884]
[1736242393546,8.99963535,215.76,215.74,23.776884]
[1736242393851,8.99963535,215.76,215.74,30.929345]
[1736242394142,8.99963535,215.76,215.74,66.929345]
[1736242395011,8.99963535,215.76,215.75,0.69504654]
[1736242396730,8.99963535,215.77,215.76,20.0]
[1736242398247,8.99963535,215.77,215.76,56.0]
[1736242400156,1.6122,215.85,215.76,56.0]
[1736242400448,8.99963535,215.8,215.77,20.69496364]
[1736242401333,8.99963535,215.81,215.77,20.69496364]
[1736242401517,8.99963535,215.81,215.77,32.28136364]
[1736242402524,7.5661,215.91,215.8,23.776884]
[1736242402739,8.99963535,215.84,215.8,24.47171317]
[1736242403250,8.99963535,215.83,215.8,24.47171317]
[1736242403551,8.99963535,215.83,215.8,60.47171317]
[1736242407751,8.99963535,215.82,215.8,59.776884]
[1736242408768,1.96,215.88,215.77,27.152461]
[1736242408769,8.99963535,215.81,215.77,27.152461]
[1736242408945,8.99963535,215.8,215.77,27.84738559]
[1736242409448,8.99963535,215.8,215.79,23.776884]
[1736242409647,8.99963535,215.8,215.77,0.69492459]
[1736242409849,1.96,215.88,215.79,20.0]
[1736242410943,8.99963535,215.8,215.79,20.0]
[1736242415178,8.99963535,215.8,215.78,20.0]
[1736242415473,8.99963535,215.79,215.78,20.0]
[1736242415982,8.99963535,215.79,215.75,8.782661]
[1736242416162,8.99963535,215.77,215.75,8.782661]
[1736242416362,8.99963535,215.77,215.75,1.6302]
[1736242416665,8.99963535,215.77,215.76,20.0]
[1736242422678,8.99963535,215.77,215.75,7.152461]
[1736242422880,8.99963535,215.76,215.75,7.152461]
[1736242423268,8.99963535,215.76,215.74,43.152461]
[1736242423477,8.99963535,215.75,215.74,43.152461]
[1736242424058,8.99963535,215.75,215.74,36.0]
[1736242426078,8.99963535,215.75,215.73,25.893322]
[1736242428884,8.99963535,215.75,215.74,14.304922]
[1736242430592,8.99963535,215.76,215.74,14.304922]
[1736242432193,8.99963535,215.76,215.75,14.304922]
[1736242436581,8.99963535,215.76,215.74,28.609844]
[1736242437205,8.99963535,215.76,215.74,28.109844]
[1736242437598,8.99963535,215.76,215.75,14.56855208]
[1736242439403,1.96,215.81,215.75,14.56855208]
[1736242439571,8.99963535,215.76,215.75,14.56855208]
[1736242440300,1.96,215.81,215.75,14.56855208]
[1736242440468,8.99963535,215.78,215.75,14.56855208]
[1736242440674,8.99963535,215.77,215.75,14.56855208]
[1736242440875,8.99963535,215.76,215.75,14.56855208]
[1736242441506,8.99963535,215.76,215.74,28.109844]
[1736242441678,8.99963535,215.75,215.74,28.109844]
[1736242441879,1.96,215.81,215.74,28.109844]
[1736242442081,8.99963535,215.76,215.74,28.109844]
[1736242442595,8.99963535,215.76,215.75,14.56901397]
[1736242443504,8.99963535,215.77,215.75,14.56901397]
[1736242445627,8.99963535,215.76,215.75,14.56901397]
[1736242447720,8.99963535,215.76,215.74,42.67885797]
[1736242447882,8.99963535,215.75,215.74,42.67885797]
[1736242449391,8.99963535,215.75,215.73,14.56901397]
[1736242449590,8.99963535,215.74,215.73,14.56901397]
[1736242453131,8.99963535,215.74,215.73,7.28277207]
[1736242453725,8.99963535,215.74,215.72,7.28277207]
[1736242453952,8.99963535,215.73,215.72,7.28277207]
[1736242454435,8.99963535,215.73,215.7,18.87267207]
[1736242454598,8.99963535,215.71,215.7,7.28277207]
[1736242455315,8.99963535,215.71,215.66,42.914766]
[1736242455316,8.99963535,215.71,215.68,7.28277207]
[1736242455516,8.99963535,215.69,215.68,7.28277207]
[1736242456340,8.99963535,215.69,215.66,7.28277207]
[1736242456508,1.96,215.74,215.66,7.28277207]
[1736242456509,8.99963535,215.67,215.66,7.28277207]
[1736242457237,1.96,215.74,215.66,7.28277207]
[1736242457602,8.99963535,215.67,215.66,7.28277207]
[1736242457818,8.99963535,215.67,215.66,20.0]
[1736242461251,7.7498,215.78,215.66,20.0]
[1736242461419,8.99963535,215.7,215.66,20.0]
[1736242464850,8.99963535,215.69,215.66,20.0]
[1736242468230,1.96,215.78,215.68,8.99963535]
[1736242468464,8.99963535,215.74,215.68,9.69486845]
[1736242468665,8.99963535,215.74,215.68,0.6952331]
[1736242469161,8.99963535,215.74,215.68,9.69486845]
[1736242469335,8.99963535,215.73,215.68,0.6952331]
[1736242471666,8.99963535,215.73,215.68,36.6952331]
[1736242472433,8.99963535,215.73,215.68,0.6952331]
[1736242472641,8.99963535,215.72,215.69,20.0]